bitfinex/quotes_SOLUSD_20260119
["timestamp","ask_amount","ask_price","bid_price","bid_amount"]
[1768811964006,7.47673481,133.75,133.72,1.84693808]
[1768811965310,25.80959024,133.76,133.72,1.84693808]
[1768811965611,23.856211,133.76,133.73,1.84693808]
[1768811966001,25.80959024,133.76,133.73,1.84693808]
[1768811966205,23.856211,133.76,133.73,1.84693808]
[1768811966401,7.4757389,133.77,133.74,1.84693808]
[1768811971914,4.35994362,133.76,133.72,1.84693808]
[1768811972088,1.95337924,133.74,133.71,64.44693808]
[1768811972701,20.73994362,133.75,133.72,1.84693808]
[1768811974118,9.43057379,133.74,133.71,1.84693808]
[1768811974291,25.81020792,133.75,133.71,1.84693808]
[1768811974497,25.81020792,133.75,133.72,1.84693808]
[1768811979118,1.95337924,133.74,133.71,1.84693808]
[1768811979496,9.43113292,133.73,133.7,64.64693808]
[1768811979795,9.43113292,133.73,133.7,2.04693808]
[1768811982414,8.93113292,133.73,133.7,2.04693808]
[1768811982821,2.40656438,133.77,133.7,2.04693808]
[1768811982822,1.89066233,133.71,133.7,1e-08]
[1768811984716,11.77609889,133.71,133.7,1e-08]
[1768811984917,11.77609889,133.71,133.68,2.16068307]
[1768811984918,9.88543656,133.71,133.67,1.96068307]
[1768811985116,4.29722671,133.7,133.67,1.96068307]
[1768811986912,7.47999102,133.69,133.67,1.96068307]
[1768811987918,9.37065335,133.69,133.66,0.2]
[1768811988122,1.89066233,133.68,133.66,1e-08]
[1768811990824,1.89066233,133.66,133.65,1e-08]
[1768811991032,1.83066234,133.66,133.65,1e-08]
[1768811993025,9.31233224,133.66,133.65,1e-08]
[1768811993523,9.38113203,133.67,133.65,1e-08]
[1768811994401,7.48130554,133.67,133.65,1.96094421]
[1768811994602,7.48130554,133.67,133.65,1e-08]
[1768811999312,39.38687813,133.69,133.65,1.96094421]
[1768811999514,1.89982649,133.68,133.65,1.96094421]
[1768812000222,1.89982649,133.67,133.65,1e-08]
[1768812000431,1.89982649,133.66,133.65,1e-08]
[1768812001032,2.40656438,133.66,133.62,64.7609442]
[1768812001228,9.88935396,133.64,133.62,0.2]
[1768812001528,1.89982649,133.63,133.62,1e-08]
[1768812001828,4.30639087,133.63,133.62,1e-08]
[1768812002125,1.89982649,133.62,133.6,1e-08]
[1768812002515,4.30639087,133.62,133.6,1e-08]
[1768812003105,9.38400629,133.62,133.6,1e-08]
[1768812003320,18.70697395,133.64,133.61,1.9609442]
[1768812003321,7.48278958,133.64,133.61,1.9609442]
[1768812003532,1.89982649,133.63,133.6,1e-08]
[1768812003913,30.4961544,133.64,133.6,1e-08]
[1768812005012,1.89982649,133.63,133.6,1e-08]
[1768812005412,9.38350675,133.63,133.6,1e-08]
[1768812005933,1.89982649,133.62,133.6,1e-08]
[1768812007731,9.38387721,133.62,133.6,1e-08]
[1768812008532,1.89982649,133.61,133.6,1e-08]
[1768812008936,4.30639087,133.61,133.6,1e-08]
[1768812009807,1.89982649,133.61,133.6,1e-08]
[1768812010622,25.76387721,133.62,133.6,1e-08]
[1768812011729,1.89982649,133.61,133.6,1e-08]
[1768812012427,9.38429621,133.61,133.6,1e-08]
[1768812014238,1.89982649,133.61,133.6,1e-08]
[1768812016524,9.38429621,133.61,133.6,1e-08]
[1768812017642,1.89982649,133.61,133.6,1e-08]
[1768812020029,1.89982649,133.64,133.6,4.36750859]
[1768812020342,1.89982649,133.63,133.6,4.36750859]
[1768812021938,9.38323893,133.63,133.6,1.96094421]
[1768812023642,1.89982649,133.63,133.6,11.85253014]
[1768812023849,1.8582384,133.63,133.61,2.00887885]
[1768812024032,23.88297978,133.64,133.61,2.00887885]
[1768812024346,16.4,133.64,133.61,2.00887885]
[1768812025758,18.35501829,133.64,133.61,2.00887885]
[1768812027148,25.83792042,133.64,133.61,2.00887885]
[1768812027454,1.95501829,133.63,133.6,9.49390041]
[1768812027637,1.95501829,133.63,133.6,11.9033964]
[1768812029139,25.83792042,133.64,133.61,2.00887885]
[1768812029730,1.95501829,133.63,133.6,11.9033964]
[1768812030757,1.95501829,133.63,133.6,34.36100765]
[1768812031352,1.95501829,133.63,133.61,2.00887885]
[1768812034033,25.83792042,133.64,133.61,2.00887885]
[1768812034456,1.95501829,133.63,133.61,2.00887885]
[1768812034961,7.48206907,133.66,133.63,2.00887885]
[1768812035268,20.65835658,133.67,133.64,4.41837484]
[1768812035269,25.83636334,133.67,133.64,4.41837484]
[1768812036169,9.43636334,133.67,133.64,4.41837484]
[1768812037352,7.48134505,133.67,133.65,0.40062214]
[1768812037541,7.48134505,133.67,133.65,3e-08]
[1768812037542,9.43636334,133.67,133.65,3e-08]
[1768812037742,9.43636334,133.67,133.65,6.99e-06]
[1768812038365,1.95501829,133.67,133.64,9.89222335]
[1768812038672,1.95501829,133.67,133.64,28.5927934]
[1768812039166,1.95501829,133.67,133.64,21.11006604]
[1768812039853,2.02973244,133.66,133.63,3.65394513]
[1768812041061,2.02973244,133.66,133.62,21.11006604]
[1768812041373,2.02973244,133.66,133.63,2.40949599]
[1768812042243,2.02973244,133.66,133.63,7.483274]
[1768812042448,2.02973244,133.67,133.63,9.89276999]
[1768812042652,2.02973244,133.67,133.64,2.40949599]
[1768812042959,2.02973244,133.67,133.65,6.9e-07]
[1768812044258,25.9105298,133.68,133.65,6.9e-07]
[1768812044859,2.02973244,133.69,133.66,2.40949599]
[1768812045747,2.02973244,133.69,133.65,2.40949599]
[1768812046566,2.02973244,133.68,133.65,9.8914891]
[1768812048456,2.02973244,133.67,133.64,22.45088868]
[1768812048650,2.02973244,133.67,133.63,62.6]
[1768812048850,2.02973244,133.67,133.62,24.86374545]
[1768812049067,2.02973244,133.67,133.62,32.34741237]
[1768812049247,2.02973244,133.67,133.62,32.16548355]
[1768812049668,2.02973244,133.67,133.63,7.4833162]
[1768812049977,2.02973244,133.66,133.63,7.4833162]
[1768812051354,2.02973244,133.66,133.62,24.68181663]
[1768812052169,2.02973244,133.67,133.63,2.40949599]
[1768812053355,2.02973244,133.67,133.63,9.89281219]
[1768812054768,1.9901532,133.66,133.63,70.0833162]
[1768812055764,1.9901532,133.66,133.63,72.49281219]
[1768812056269,1.9901532,133.66,133.63,70.0833162]
[1768812056567,9.4718289,133.66,133.63,62.6]
[1768812057769,1.9901532,133.66,133.63,70.08326912]
[1768812058073,1.9901532,133.66,133.63,72.49276511]
[1768812060069,1.9901532,133.65,133.63,62.6]
[1768812060576,1.9901532,133.65,133.62,2.40949599]
[1768812061149,1.9901532,133.65,133.61,28.59552326]
[1768812061345,1.9901532,133.65,133.62,2.40949599]
[1768812061750,1.9901532,133.65,133.62,9.89315656]
[1768812061950,25.85150957,133.67,133.63,9.89270927]
[1768812063471,1.9901532,133.66,133.63,9.89270927]
[1768812064873,1.9901532,133.65,133.62,2.40949599]
[1768812065070,1.9901532,133.65,133.61,31.00501836]
[1768812066373,9.47238876,133.65,133.61,72.49367856]
[1768812067583,9.47238876,133.65,133.62,2.40949599]
[1768812067955,16.38,133.67,133.62,7.48380364]
[1768812068292,1.9901532,133.66,133.61,72.49377527]
[1768812069582,1.9901532,133.65,133.62,2.40949599]
[1768812069764,1.9301532,133.65,133.62,2.40949599]
[1768812070260,1.9301532,133.65,133.61,72.55840486]
[1768812070881,1.9301532,133.65,133.62,2.40949599]
[1768812072585,1.9301532,133.65,133.61,88.85168436]
[1768812072881,1.9301532,133.65,133.62,9.89329637]
[1768812074083,1.9301532,133.65,133.62,2.40949599]
[1768812074588,1.9301532,133.65,133.62,9.95965769]
[1768812075389,9.47201424,133.66,133.63,2.47615449]
[1768812075787,9.47201424,133.66,133.63,2.40949599]
[1768812075983,1.9901532,133.65,133.62,7.55084502]
[1768812076182,1.93015319,133.65,133.63,2.40949599]
[1768812077084,18.70277549,133.67,133.63,2.40949599]
[1768812077267,7.48055056,133.68,133.63,10.02013989]
[1768812078087,1.9901532,133.67,133.63,10.02013989]
[1768812078689,48.48608489,133.71,133.65,0.12766591]
[1768812078986,1.9901532,133.7,133.67,2.40949599]
[1768812079183,1.9901532,133.7,133.66,7.48330992]
[1768812079494,1.9901532,133.7,133.65,65.13749002]
[1768812080185,1.9901532,133.68,133.65,62.6]
[1768812080383,1.9901532,133.68,133.64,65.00949599]
[1768812082789,2.03088447,133.67,133.64,62.6]
[1768812083092,2.03088447,133.67,133.62,72.62278197]
[1768812083672,2.03088447,133.67,133.63,2.40949599]
[1768812084894,9.51236588,133.67,133.63,2.40828698]
[1768812085092,2.03088447,133.66,133.63,2.40828698]
[1768812085295,2.03088447,133.66,133.62,72.62157296]
[1768812086176,2.03088447,133.65,133.62,72.62157296]
[1768812086378,2.03088447,133.65,133.62,62.72949168]
[1768812086799,2.03088447,133.65,133.62,0.12949168]
[1768812091597,2.03088447,133.65,133.61,72.62422004]
[1768812092283,2.03088447,133.65,133.62,0.13187938]
[1768812093704,2.03088447,133.65,133.62,2.54016636]
[1768812097103,9.51317924,133.65,133.62,0.13187938]
[1768812099701,2.03088447,133.69,133.65,0.13380309]
[1768812100004,2.0101414,133.68,133.65,2.54209007]
[1768812100299,9.4908449,133.68,133.65,2.54209007]
[1768812100475,9.4908449,133.68,133.65,0.13380309]
[1768812100679,2.0101414,133.67,133.64,10.02502349]
[1768812100892,2.0101414,133.68,133.65,2.40828698]
[1768812102501,2.0101414,133.68,133.64,10.02524907]
[1768812103903,2.0101414,133.68,133.65,0.1349182]
[1768812104901,9.49107929,133.68,133.65,0.1349182]
[1768812105384,2.0101414,133.71,133.67,2.54342057]
[1768812105588,2.0101414,133.71,133.66,2.54342057]
[1768812106488,2.0101414,133.7,133.66,2.54342057]
[1768812106706,2.0101414,133.7,133.66,10.02501801]
[1768812107006,2.0101414,133.7,133.67,2.40828698]
[1768812109004,2.0101414,133.7,133.67,2.54425769]
[1768812110205,2.0101414,133.69,133.66,62.6]
[1768812110391,2.0101414,133.69,133.65,2.40828698]
[1768812110587,2.0101414,133.69,133.64,70.21846027]
[1768812110793,2.0101414,133.69,133.65,2.40828698]
[1768812111713,2.0101414,133.69,133.65,2.54466197]
[1768812112719,2.09690193,133.68,133.65,2.40828698]
[1768812115414,2.09690193,133.72,133.68,0.13734574]
[1768812115722,2.09690193,133.72,133.69,2.40828698]
[1768812116512,2.09690193,133.71,133.67,7.48106728]
[1768812116706,2.09690193,133.71,133.69,2.40828698]
[1768812116893,2.09690193,133.71,133.69,2.39e-06]
[1768812117594,2.09690193,133.71,133.68,7.48045638]
[1768812117816,2.09690193,133.71,133.69,2.40828698]
[1768812118017,2.09690193,133.71,133.69,1.63483763]
[1768812119012,2.09690193,133.71,133.68,7.48045638]
[1768812119205,2.09690193,133.71,133.69,2.40828698]
[1768812120335,2.09690193,133.71,133.68,9.88874336]
[1768812120924,2.09690193,133.71,133.68,10.02718236]
[1768812121109,2.09690193,133.73,133.7,2.54672598]
[1768812121846,2.09690193,133.73,133.71,2.40828698]
[1768812122008,16.38,133.75,133.72,2.54690093]
[1768812122222,2.09690193,133.76,133.73,2.54690093]
[1768812122400,2.09690193,133.76,133.73,10.02439817]
[1768812123316,2.19690193,133.77,133.73,10.02439817]
[1768812123509,2.19690193,133.77,133.74,0.1387869]
[1768812124311,2.19690193,133.77,133.73,10.02474207]
[1768812124819,2.19690193,133.77,133.73,7.61645509]
[1768812125016,2.19690193,133.8,133.75,0.13912685]
[1768812125716,2.19690193,133.8,133.75,2.54741383]
[1768812125915,2.19690193,133.8,133.76,0.1392939]
[1768812126611,2.19690193,133.8,133.76,7.61532051]
[1768812127206,2.09690193,133.79,133.76,7.61532051]
[1768812127413,2.09690193,133.79,133.76,7.47602661]
[1768812129814,2.09690193,133.79,133.75,7.61586298]
[1768812130121,4.50518891,133.79,133.75,7.61586298]
[1768812130802,4.50518891,133.79,133.75,70.21586298]
[1768812131204,2.09690193,133.79,133.75,70.21586298]
[1768812132527,4.50518891,133.79,133.75,70.21586298]
[1768812133810,2.09690193,133.79,133.75,70.21586298]
[1768812134111,2.19690193,133.8,133.76,0.14056308]
[1768812134417,4.60518891,133.8,133.76,0.14056308]
[1768812135605,4.60518891,133.8,133.76,7.61619179]
[1768812136002,4.50518891,133.79,133.76,7.61619179]
[1768812136719,4.50518891,133.79,133.76,7.61681635]
[1768812136720,2.09690193,133.79,133.76,7.61681635]
[1768812137102,4.50518891,133.79,133.76,7.61681635]
[1768812137528,2.09690193,133.78,133.75,62.6]
[1768812137716,4.50518891,133.78,133.75,70.21760455]
[1768812138419,2.09690193,133.78,133.75,70.21760455]
[1768812139221,2.09690193,133.76,133.73,77.55201908]
[1768812139403,2.03690194,133.76,133.73,7.61868309]
[1768812140522,2.40828698,133.77,133.73,7.61868309]
[1768812140907,2.40828698,133.76,133.73,7.61868309]
[1768812141327,2.34828699,133.76,133.73,7.61868309]
[1768812141909,2.40828698,133.78,133.74,0.20172021]
[1768812142307,2.40828698,133.77,133.74,0.20172021]
[1768812142509,2.09690193,133.77,133.74,0.20172021]
[1768812143209,2.09690193,133.77,133.73,7.67937749]
[1768812143422,2.08743043,133.76,133.73,7.67937749]
[1768812143815,2.03742141,133.76,133.73,7.67937749]
[1768812144022,1.97742142,133.76,133.73,7.67937749]
[1768812147623,2.08743043,133.77,133.74,0.31258313]
[1768812148027,2.08743043,133.77,133.74,7.78957883]
[1768812148720,2.08743043,133.78,133.75,0.31272866]
[1768812148922,7.47457705,133.79,133.75,0.31272866]
[1768812148923,2.08743043,133.79,133.75,0.31272866]
[1768812149121,2.08743043,133.79,133.76,0.31285594]
[1768812149835,2.08743043,133.79,133.76,7.78861629]
[1768812150926,2.18743043,133.8,133.76,7.78861629]
[1768812151732,2.18743043,133.8,133.77,0.31304769]
[1768812151932,2.18743043,133.8,133.77,7.78849386]
[1768812152433,2.18743043,133.8,133.77,7.47544617]
[1768812152811,2.18743043,133.8,133.77,7.78858809]
[1768812153221,2.18743043,133.8,133.75,97.67076306]
[1768812153222,2.18743043,133.8,133.76,7.78931162]
[1768812154336,2.18743043,133.8,133.76,70.38931162]
[1768812154717,2.18743043,133.8,133.77,0.31332715]
[1768812156314,2.18743043,133.8,133.77,7.78843998]
[1768812157811,2.12743044,133.8,133.77,7.78843998]
[1768812158611,2.12743044,133.8,133.77,7.47511283]
[1768812160137,2.12743044,133.8,133.77,70.07511283]
[1768812161938,2.03902853,133.78,133.77,62.6]
[1768812162146,4.44383287,133.78,133.77,60.49388606]
[1768812162331,4.44383287,133.78,133.77,58.38777212]
[1768812162723,2.03902853,133.78,133.77,58.38777212]
[1768812165140,4.44383287,133.78,133.77,58.38777212]
[1768812165743,2.03902853,133.78,133.77,58.38777212]
[1768812166047,2.03902853,133.77,133.74,9.38218808]
[1768812166939,9.51398741,133.78,133.75,1.9052099]
[1768812168843,2.03902853,133.77,133.74,9.38218808]
[1768812170148,2.03902853,133.77,133.75,1.9052099]
[1768812173849,2.10371836,133.78,133.75,1.9052099]
[1768812174635,4.5085227,133.78,133.75,1.9052099]
[1768812175237,9.6178175,133.8,133.76,1.94497383]
[1768812175442,2.10371836,133.79,133.76,1.94497383]
[1768812175842,2.04371836,133.79,133.76,1.94497383]
[1768812176553,9.51827005,133.79,133.76,1.94497383]
[1768812178560,11.92307439,133.79,133.76,1.94497383]
[1768812178759,11.86307439,133.79,133.76,1.94497383]
[1768812179537,2.40480434,133.78,133.74,1.94497383]
[1768812179737,2.40480434,133.78,133.74,9.42208135]
[1768812179938,2.40480434,133.78,133.74,1.94497383]
[1768812180241,2.40480434,133.77,133.73,64.54497383]
[1768812180444,2.40480434,133.77,133.73,70.07775314]
[1768812180648,2.40480434,133.77,133.74,1.94497383]
[1768812180846,4.5085227,133.77,133.74,1.94497383]
[1768812181358,11.9841638,133.77,133.74,1.94497383]
[1768812181559,9.57935946,133.77,133.74,1.94497383]
[1768812181741,11.9841638,133.77,133.74,1.94497383]
[1768812182264,2.10371836,133.76,133.74,1.94497383]
[1768812182460,2.04371834,133.76,133.74,1.94497383]
[1768812182762,9.88044544,133.77,133.74,1.94497383]
[1768812183563,28.56923963,133.77,133.72,1.94497383]
[1768812183755,2.40480434,133.75,133.72,1.94497383]
[1768812183956,2.40480434,133.76,133.72,1.94497383]
[1768812184264,26.16443529,133.77,133.72,1.94497383]
[1768812184265,2.40480434,133.75,133.72,1.94497383]
[1768812184446,4.5085227,133.75,133.72,1.94497383]
[1768812184963,4.44852267,133.75,133.72,1.94497383]
[1768812185670,4.5085227,133.75,133.72,1.94497383]
[1768812186276,4.44852269,133.75,133.72,1.94497383]
[1768812186875,9.88162608,133.75,133.71,9.42353305]
[1768812187071,2.40480434,133.74,133.71,1.94497383]
[1768812188269,4.5085227,133.74,133.71,1.94497383]
[1768812188569,2.10371836,133.73,133.69,62.6]
[1768812188770,4.5085227,133.73,133.7,1.94497383]
[1768812189567,2.10371836,133.73,133.71,1.94497383]
[1768812189869,42.54626793,133.76,133.71,1.94497383]
[1768812189870,11.98459925,133.76,133.72,1.94497383]
[1768812190078,9.57979491,133.76,133.73,1.94497383]
[1768812191170,2.10371836,133.75,133.73,1.94497383]
[1768812191373,2.10371836,133.75,133.72,1.94497383]
[1768812197482,9.58038245,133.75,133.72,1.94497383]
[1768812197989,2.10371836,133.75,133.72,1.94497383]
[1768812198976,2.10371836,133.75,133.72,9.42327937]
[1768812201082,2.10371836,133.75,133.72,1.94497383]
[1768812201282,2.10371836,133.74,133.71,9.42359665]
[1768812201988,2.10371836,133.74,133.72,1.94497383]
[1768812202366,2.10371836,133.75,133.72,1.94497383]
[1768812203889,2.10371836,133.75,133.72,9.4232624]
[1768812204889,2.10371836,133.75,133.72,9.51203718]
[1768812205102,2.10371836,133.75,133.73,2.03374861]
[1768812205482,11.81729962,133.76,133.73,2.03374861]
[1768812205686,1.93616655,133.76,133.73,2.03374861]
[1768812205892,1.93616655,133.77,133.73,2.03374861]
[1768812207491,4.34097089,133.77,133.73,7.47743488]
[1768812207683,4.34097089,133.77,133.74,2.03374861]
[1768812208906,4.34112062,133.77,133.74,2.03374861]
[1768812209073,11.81668327,133.77,133.74,2.03374861]
[1768812210001,1.93616655,133.76,133.72,7.47831289]
[1768812210184,1.93616655,133.76,133.73,2.03374861]
[1768812210384,4.34112062,133.76,133.73,2.03374861]
[1768812211786,11.81737527,133.76,133.73,2.03374861]
[1768812212183,1.93616655,133.75,133.72,9.5120615]
[1768812212375,1.93616655,133.75,133.72,2.03374861]
[1768812214097,9.41305082,133.75,133.72,2.03374861]
[1768812214399,11.81800489,133.75,133.72,2.03374861]
[1768812215794,11.81800489,133.75,133.71,62.6]
[1768812215795,1.93616655,133.72,133.71,62.6]
[1768812215985,1.93616655,133.72,133.69,2.03374861]
[1768812216377,1.93616655,133.73,133.7,2.03374861]
[1768812216672,4.34112062,133.73,133.7,2.03374861]
[1768812216876,2.40495407,133.74,133.71,2.03374861]
[1768812217187,1.93616655,133.74,133.71,2.03374861]
[1768812218002,9.4134219,133.74,133.71,2.03374861]
[1768812218799,11.81837597,133.74,133.71,2.03374861]
[1768812219618,11.81837597,133.74,133.71,2.00374861]
[1768812220112,2.11456628,133.73,133.69,7.47999102]
[1768812221590,2.11456628,133.73,133.7,2.04212515]
[1768812222514,2.11456628,133.73,133.7,9.52144509]
[1768812222726,2.11456628,133.73,133.71,2.04212515]
[1768812229695,9.59235097,133.73,133.7,2.04212515]
[1768812230803,11.99730504,133.73,133.7,2.04212515]
[1768812231525,2.11456628,133.72,133.67,18.69212082]
[1768812231727,2.11456628,133.72,133.67,2.04212515]
[1768812231728,2.11456628,133.7,133.67,2.04212515]
[1768812232921,2.11456628,133.7,133.67,9.52317401]
[1768812234499,9.59413617,133.7,133.67,2.04212515]
[1768812234698,11.99909024,133.7,133.67,2.04212515]
[1768812236421,2.11456628,133.7,133.67,2.04212515]
[1768812236803,2.11456628,133.7,133.66,2.0198736]
[1768812236804,2.09437314,133.69,133.66,2.0198736]
[1768812237000,9.57402568,133.7,133.66,2.0198736]
[1768812238517,9.57402568,133.7,133.67,2.0198736]
[1768812241620,2.09437314,133.69,133.66,2.0198736]
[1768812242425,2.09437314,133.69,133.66,9.50140367]
[1768812242625,2.09437314,133.69,133.67,2.0198736]
[1768812245607,9.57402568,133.7,133.67,2.0198736]
[1768812246726,2.09437314,133.7,133.67,9.50082785]
[1768812247122,2.09437314,133.71,133.68,2.0198736]
[1768812247316,2.09437314,133.72,133.68,2.0198736]
[1768812248526,2.09437314,133.72,133.69,2.0198736]
[1768812250623,2.09437314,133.72,133.69,9.4998581]
[1768812252730,9.57273963,133.72,133.67,2.0198736]
[1768812252931,2.09437314,133.71,133.67,2.0198736]
[1768812253810,2.09437314,133.71,133.68,2.0198736]
[1768812254016,7.47836649,133.72,133.69,2.0198736]
[1768812254217,9.57273963,133.72,133.69,2.0198736]
[1768812257017,2.09437314,133.71,133.68,9.50013138]
[1768812257218,9.57332996,133.71,133.68,2.0198736]
[1768812262820,7.47837954,133.72,133.69,1.99695278]
[1768812263024,2.40495407,133.74,133.69,1.99695278]
[1768812263237,1.9365227,133.73,133.69,1.99695278]
[1768812264146,9.41451657,133.73,133.69,9.47670545]
[1768812264333,9.41451657,133.73,133.7,1.99695278]
[1768812265346,18.3165227,133.75,133.71,1.99695278]
[1768812265839,25.79328242,133.75,133.71,1.99695278]
[1768812267127,9.41328242,133.75,133.72,1.99695278]
[1768812268244,1.9365227,133.75,133.72,1.99695278]
[1768812268751,0.04000001,133.8,133.75,0.52441192]
[1768812269038,37.45137089,133.87,133.78,1.99695278]
[1768812269224,2.50495407,133.83,133.78,1.99695278]
[1768812269426,0.1,133.83,133.78,1.99695278]
[1768812269626,2.50495407,133.83,133.78,1.99695278]
[1768812269933,2.50495407,133.83,133.78,4.40190685]
[1768812270329,2.40495407,133.82,133.78,1.99695278]
[1768812271048,1.9365227,133.81,133.78,1.99695278]
[1768812271431,1.9365227,133.82,133.79,18.37695278]
[1768812272525,1.9365227,133.82,133.79,4.40010368]
[1768812273234,1.9365227,133.82,133.79,11.97262603]
[1768812273430,1.9365227,133.82,133.79,4.40010368]
[1768812274953,1.9365227,133.82,133.78,11.87486936]
[1768812275130,1.9365227,133.82,133.78,28.25486936]
[1768812275442,1.9365227,133.82,133.78,11.87486936]
[1768812275626,1.9365227,133.82,133.78,28.25486936]
[1768812275827,1.9365227,133.82,133.78,11.87486936]
[1768812276335,1.9365227,133.82,133.78,28.25486936]
[1768812276541,1.9365227,133.82,133.78,11.87486936]
[1768812277052,1.9365227,133.82,133.78,28.25486936]
[1768812277249,1.9365227,133.82,133.78,11.87486936]
[1768812277546,1.9365227,133.82,133.78,28.25486936]
[1768812278047,1.9365227,133.82,133.78,11.87486936]
[1768812278447,1.9365227,133.82,133.78,28.25486936]
[1768812279751,1.9365227,133.82,133.78,11.87486936]
[1768812280046,1.9365227,133.82,133.78,28.25486936]
[1768812280225,1.9365227,133.82,133.78,11.87486936]
[1768812280422,9.40925202,133.82,133.78,11.87486936]
[1768812280623,9.40925202,133.82,133.79,1.94482764]
[1768812282949,1.9365227,133.82,133.79,11.82235501]
[1768812283135,1.9365227,133.82,133.79,9.41920411]
[1768812286844,1.9365227,133.82,133.79,11.82235501]
[1768812288044,9.65043084,133.83,133.8,1.94482764]
[1768812288243,2.17801877,133.83,133.8,1.94482764]
[1768812288453,2.17801877,133.83,133.8,4.34797854]
[1768812288758,2.17801877,133.83,133.8,11.82173643]
[1768812289349,0.1,133.83,133.81,4.34797854]
[1768812290144,0.1,133.83,133.81,1.94482764]
[1768812292565,2.07801877,133.82,133.78,64.54482764]
[1768812292863,2.07801877,133.82,133.79,2.02710832]
[1768812299361,2.13436827,133.81,133.78,9.50181464]
[1768812299554,2.13436827,133.81,133.78,25.86181464]
[1768812299858,2.13436827,133.81,133.78,9.50181464]
[1768812300361,2.13436827,133.81,133.78,25.86181464]
[1768812301445,2.13436827,133.79,133.75,2.02710832]
[1768812301756,4.53751917,133.78,133.75,2.02710832]
[1768812304251,2.13436827,133.78,133.75,9.50366308]
[1768812315265,9.60774412,133.81,133.77,2.02710832]
[1768812315461,2.13436827,133.81,133.78,2.02710832]
[1768812315658,2.13436827,133.82,133.78,2.02710832]
[1768812316269,2.13436827,133.81,133.78,2.02710832]
[1768812316663,2.13436827,133.81,133.78,9.5020616]
[1768812317559,2.13436827,133.82,133.79,2.02710832]
[1768812318776,2.13436827,133.81,133.78,9.5020616]
[1768812322679,2.12740529,133.82,133.79,2.08466141]
[1768812323063,2.12740529,133.81,133.78,9.55961469]
[1768812325874,7.47336981,133.81,133.77,9.87841983]
[1768812326058,2.12740529,133.8,133.77,11.96308124]
[1768812326265,2.12740529,133.8,133.77,9.55993034]
[1768812326582,2.12740529,133.8,133.77,11.96308124]
[1768812326781,2.12740529,133.8,133.77,9.55993034]
[1768812326972,2.12740529,133.8,133.77,9.56001242]
[1768812328779,2.12740529,133.8,133.77,11.96316332]
[1768812329272,9.60048358,133.82,133.78,2.08466141]
[1768812329485,2.12740529,133.81,133.78,2.08466141]
[1768812330878,2.12740529,133.82,133.79,2.08466141]
[1768812332391,2.12740529,133.82,133.79,9.55867258]
[1768812333190,2.12740529,133.82,133.79,11.96147039]
[1768812333884,2.12740529,133.82,133.79,7.47401117]
[1768812334090,2.12740529,133.82,133.79,9.55867258]
[1768812336071,2.12740529,133.82,133.79,11.96147039]
[1768812336679,0.1,133.83,133.8,2.08466141]
[1768812337087,2.22740529,133.83,133.8,2.08466141]
[1768812338691,9.69958204,133.83,133.8,4.48745922]
[1768812338878,0.1,133.83,133.81,4.48745922]
[1768812339079,0.1,133.83,133.82,2.08466141]
[1768812343205,0.1,133.83,133.81,25.93435575]
[1768812343713,0.1,133.83,133.81,9.55435575]
[1768812351903,2.21682975,133.83,133.81,2.08146239]
[1768812352117,2.21682975,133.83,133.8,72.15502975]
[1768812353509,2.21682975,133.83,133.8,70.07356736]
[1768812356520,2.21682975,133.83,133.8,7.47356736]
[1768812357426,2.21682975,133.83,133.8,9.67494005]
[1768812359019,1e-08,133.83,133.82,2.20137269]
[1768812359226,1e-08,133.83,133.82,4.6041705]
[1768812360203,1e-08,133.83,133.82,12.07689505]
[1768812361121,1e-08,133.83,133.82,9.67409724]
[1768812361620,1e-08,133.83,133.82,7.47272455]
[1768812361796,1e-08,133.83,133.81,28.43723101]
[1768812363019,2.20401766,133.83,133.81,12.07723101]
[1768812363920,1e-08,133.83,133.81,12.07723101]
[1768812368021,1e-08,133.83,133.8,97.64460388]
[1768812368022,2.20401766,133.83,133.8,74.67781808]
[1768812368222,2.20401766,133.83,133.8,28.43781808]
[1768812368518,2.20401766,133.83,133.8,23.83364758]
[1768812369903,2.20401766,133.83,133.8,26.03502027]
[1768812370326,2.20401766,133.83,133.8,28.43781808]
[1768812370931,1e-08,133.83,133.81,2.20137269]
[1768812371817,1e-08,133.83,133.81,4.6041705]
[1768812372934,1e-08,133.83,133.81,12.0769739]
[1768812373525,1e-08,133.83,133.82,2.20137269]
[1768812375032,1e-08,133.83,133.82,9.67409724]
[1768812379013,0.1,133.89,133.82,9.67409724]
[1768812379014,2.20401765,133.88,133.83,2.20137269]
[1768812379222,2.20401765,133.87,133.84,2.20137269]
[1768812379421,2.20401765,133.87,133.83,20.9641705]
[1768812380131,2.20401765,133.87,133.84,4.6041705]
[1768812380337,2.20401765,133.87,133.84,9.67283855]
[1768812380519,2.20401765,133.87,133.84,7.47146586]
[1768812383238,2.20401765,133.87,133.84,9.59741022]
[1768812385938,2.10909508,133.86,133.84,2.12594436]
[1768812386239,2.10909508,133.86,133.83,19.47007326]
[1768812388949,2.10909508,133.86,133.83,17.3441289]
[1768812389130,2.10909508,133.86,133.84,2.12594436]
[1768812390946,2.10909508,133.86,133.83,19.47007326]